[Event "Early-Titled-Tuesday-Blitz-June-18-2024"]
[Site "Chess.com"]
[Date "2024.06.18"]
[Round "4"]
[White "Nadtkins"]
[Black "Losingexperience"]
[Result "0-1"]
[WhiteElo "2558"]
[BlackElo "2769"]
[TimeControl "180+1"]
[EndTime "8:42:11 PDT"]
[Termination "Losingexperience won on time"]

1. e4 {[%clk 0:02:54.9]} 1... c5 {[%clk 0:02:57.2]} 2. Ne2 {[%clk 0:02:54.5]}
2... d6 {[%clk 0:02:56.6]} 3. g3 {[%clk 0:02:49.1]} 3... Nf6 {[%clk 0:02:56.5]}
4. Bg2 {[%clk 0:02:49.3]} 4... Nc6 {[%clk 0:02:56.6]} 5. c3 {[%clk 0:02:46.4]}
5... g6 {[%clk 0:02:56.7]} 6. d4 {[%clk 0:02:43.9]} 6... cxd4 {[%clk 0:02:55.6]}
7. cxd4 {[%clk 0:02:44.8]} 7... Bg7 {[%clk 0:02:54.3]} 8. Nbc3 {[%clk
0:02:43.6]} 8... O-O {[%clk 0:02:54.3]} 9. h3 {[%clk 0:02:40.3]} 9... Bd7 {[%clk
0:02:43.4]} 10. O-O {[%clk 0:02:36]} 10... Rc8 {[%clk 0:02:43.2]} 11. Be3 {[%clk
0:02:29.3]} 11... a6 {[%clk 0:02:42.3]} 12. b3 {[%clk 0:02:15.8]} 12... b5
{[%clk 0:02:39.4]} 13. d5 {[%clk 0:02:16.1]} 13... Na5 {[%clk 0:02:38.6]} 14.
Rc1 {[%clk 0:02:08.3]} 14... b4 {[%clk 0:02:35.7]} 15. Nb1 {[%clk 0:01:57.7]}
15... Bb5 {[%clk 0:02:31.7]} 16. Rxc8 {[%clk 0:01:47.2]} 16... Qxc8 {[%clk
0:02:32.6]} 17. Re1 {[%clk 0:01:47.5]} 17... Nb7 {[%clk 0:02:28.2]} 18. Nd4
{[%clk 0:01:42.9]} 18... Bd7 {[%clk 0:02:28.3]} 19. Nd2 {[%clk 0:01:30.2]} 19...
Bxh3 {[%clk 0:02:25.8]} 20. Nc6 {[%clk 0:01:28.9]} 20... Re8 {[%clk 0:02:22.7]}
21. Nxb4 {[%clk 0:01:15.4]} 21... Bxg2 {[%clk 0:02:17.1]} 22. Kxg2 {[%clk
0:01:15.4]} 22... Ng4 {[%clk 0:02:17.1]} 23. Nc4 {[%clk 0:01:04.8]} 23... Bc3
{[%clk 0:01:52.8]} 24. Bd2 {[%clk 0:00:59.2]} 24... Bxb4 {[%clk 0:01:36.4]} 25.
Bxb4 {[%clk 0:00:58.9]} 25... Nf6 {[%clk 0:01:28.3]} 26. Bc3 {[%clk 0:00:53.2]}
26... Nd7 {[%clk 0:01:25.4]} 27. Rh1 {[%clk 0:00:42.6]} 27... f6 {[%clk
0:01:20.3]} 28. f4 {[%clk 0:00:30.6]} 28... Nbc5 {[%clk 0:01:17.5]} 29. Qd4
{[%clk 0:00:28.2]} 29... Rf8 {[%clk 0:01:06.6]} 30. Na5 {[%clk 0:00:25.4]} 30...
Nb8 {[%clk 0:00:53.6]} 31. Kf3 {[%clk 0:00:24.1]} 31... Qc7 {[%clk 0:00:50]} 32.
g4 {[%clk 0:00:20.2]} 32... Ncd7 {[%clk 0:00:47.4]} 33. Nc4 {[%clk 0:00:20.1]}
33... Ne5+ {[%clk 0:00:42.9]} 34. Kg3 {[%clk 0:00:17.7]} 34... Nxc4 {[%clk
0:00:41.7]} 35. b4 {[%clk 0:00:18.6]} 35... Nb6 {[%clk 0:00:32.9]} 36. g5 {[%clk
0:00:09.9]} 36... N8d7 {[%clk 0:00:31.9]} 37. Rc1 {[%clk 0:00:05]} 37... Qc4
{[%clk 0:00:29.8]} 38. Bb2 {[%clk 0:00:03.8]} 38... Qxd4 {[%clk 0:00:28.7]} 39.
Bxd4 {[%clk 0:00:04.7]} 39... Rc8 {[%clk 0:00:28.5]} 40. Rc6 {[%clk 0:00:03.7]}
40... Rb8 {[%clk 0:00:23.8]} 41. gxf6 {[%clk 0:00:03.1]} 41... exf6 {[%clk
0:00:20.9]} 42. Rxd6 {[%clk 0:00:03.5]} 42... Kf7 {[%clk 0:00:21.1]} 43. e5
{[%clk 0:00:03.1]} 43... fxe5 {[%clk 0:00:19]} 44. fxe5 {[%clk 0:00:04]} 44...
Ke7 {[%clk 0:00:14.1]} 45. a3 {[%clk 0:00:04.1]} 45... Nc4 {[%clk 0:00:11.8]}
46. Re6+ {[%clk 0:00:04.2]} 46... Kd8 {[%clk 0:00:10.7]} 47. Kf4 {[%clk
0:00:04.5]} 47... a5 {[%clk 0:00:08.9]} 48. bxa5 {[%clk 0:00:03.8]} 48... Nxa5
{[%clk 0:00:08.5]} 49. Ra6 {[%clk 0:00:03.6]} 49... Nb3 {[%clk 0:00:06.3]} 50.
Bc3 {[%clk 0:00:01.6]} 50... Nbc5 {[%clk 0:00:06.5]} 0-1

[Event "Early-Titled-Tuesday-Blitz-June-18-2024"]
[Site "Chess.com"]
[Date "2024.06.18"]
[Round "4"]
[White "mangochessgo"]
[Black "Pelusiansky"]
[Result "1-0"]
[WhiteElo "2670"]
[BlackElo "2426"]
[TimeControl "180+1"]
[EndTime "8:42:11 PDT"]
[Termination "mangochessgo won by resignation"]

1. d4 {[%clk 0:03:00.9]} 1... Nf6 {[%clk 0:02:56.5]} 2. Nf3 {[%clk 0:03:01.2]}
2... e6 {[%clk 0:02:55]} 3. Bf4 {[%clk 0:03:01]} 3... Bd6 {[%clk 0:02:52.7]} 4.
Bxd6 {[%clk 0:03:00.1]} 4... cxd6 {[%clk 0:02:52.6]} 5. Nbd2 {[%clk 0:02:54.8]}
5... d5 {[%clk 0:02:49.9]} 6. e3 {[%clk 0:02:53.2]} 6... O-O {[%clk 0:02:48.6]}
7. Bd3 {[%clk 0:02:53.1]} 7... b6 {[%clk 0:02:44]} 8. Qe2 {[%clk 0:02:52.6]}
8... Nc6 {[%clk 0:02:41.5]} 9. a3 {[%clk 0:02:49.1]} 9... d6 {[%clk 0:02:39.8]}
10. O-O {[%clk 0:02:36.3]} 10... Bb7 {[%clk 0:02:33.6]} 11. c4 {[%clk
0:02:35.8]} 11... dxc4 {[%clk 0:02:26.5]} 12. Nxc4 {[%clk 0:02:35.7]} 12... Rc8
{[%clk 0:02:26.4]} 13. Rac1 {[%clk 0:02:34.8]} 13... Ne7 {[%clk 0:02:21.8]} 14.
Rc3 {[%clk 0:02:29.7]} 14... Qd7 {[%clk 0:02:15.2]} 15. Rfc1 {[%clk 0:02:28.8]}
15... Be4 {[%clk 0:02:09.8]} 16. Nfd2 {[%clk 0:02:10.3]} 16... Bxd3 {[%clk
0:02:08.2]} 17. Qxd3 {[%clk 0:02:09.3]} 17... Ned5 {[%clk 0:01:59.8]} 18. R3c2
{[%clk 0:02:08.3]} 18... b5 {[%clk 0:01:59.5]} 19. Na5 {[%clk 0:02:04.1]} 19...
a6 {[%clk 0:01:56.5]} 20. Nc6 {[%clk 0:01:57.8]} 20... Rc7 {[%clk 0:01:56.6]}
21. e4 {[%clk 0:01:55]} 21... Nf4 {[%clk 0:01:49.8]} 22. Qe3 {[%clk 0:01:47.6]}
22... Rfc8 {[%clk 0:01:39.6]} 23. Nb8 {[%clk 0:01:08.3]} 23... Rxc2 {[%clk
0:01:12.5]} 24. Rxc2 {[%clk 0:01:04.9]} 24... Qb7 {[%clk 0:01:12]} 25. Rxc8+
{[%clk 0:01:00.1]} 25... Qxc8 {[%clk 0:01:11.9]} 26. Nxa6 {[%clk 0:00:43.9]}
26... Ng4 {[%clk 0:00:57]} 27. Qf3 {[%clk 0:00:27.2]} 27... Qc1+ {[%clk
0:00:27.8]} 28. Nf1 {[%clk 0:00:27.2]} 28... Qxf1+ {[%clk 0:00:23.8]} 29. Kxf1
{[%clk 0:00:27.5]} 29... Nxh2+ {[%clk 0:00:24.7]} 30. Ke1 {[%clk 0:00:22.6]}
30... Nxf3+ {[%clk 0:00:24.6]} 31. gxf3 {[%clk 0:00:23]} 31... Kf8 {[%clk
0:00:21.7]} 32. Nc7 {[%clk 0:00:21.5]} 32... b4 {[%clk 0:00:19.2]} 33. a4 {[%clk
0:00:17.4]} 33... Nd3+ {[%clk 0:00:18.8]} 34. Ke2 {[%clk 0:00:12.5]} 34... Nxb2
{[%clk 0:00:19.7]} 35. a5 {[%clk 0:00:12.6]} 35... Nc4 {[%clk 0:00:16.4]} 36. a6
{[%clk 0:00:12.7]} 36... Nb6 {[%clk 0:00:14.1]} 37. a7 {[%clk 0:00:10]} 37... h5
{[%clk 0:00:13]} 38. a8=Q+ {[%clk 0:00:05.7]} 38... Nxa8 {[%clk 0:00:12.9]} 39.
Nxa8 {[%clk 0:00:06.6]} 39... h4 {[%clk 0:00:11.1]} 40. Nb6 {[%clk 0:00:05.9]}
40... h3 {[%clk 0:00:09.7]} 41. Kf1 {[%clk 0:00:06.3]} 41... Ke7 {[%clk
0:00:05.1]} 42. Kg1 {[%clk 0:00:05.6]} 42... Kd8 {[%clk 0:00:04.6]} 43. Kh2
{[%clk 0:00:04.3]} 43... Kc7 {[%clk 0:00:05.2]} 44. Nc4 {[%clk 0:00:02.1]} 44...
d5 {[%clk 0:00:05.7]} 45. exd5 {[%clk 0:00:02]} 45... exd5 {[%clk 0:00:06.6]}
46. Nd2 {[%clk 0:00:02]} 46... Kc6 {[%clk 0:00:05.4]} 47. Kxh3 {[%clk
0:00:02.6]} 47... Kb5 {[%clk 0:00:06.3]} 48. Kg4 {[%clk 0:00:02.9]} 48... Ka4
{[%clk 0:00:06.8]} 49. Kf5 {[%clk 0:00:02.7]} 49... Ka3 {[%clk 0:00:06.2]} 50.
Ke5 {[%clk 0:00:02.4]} 50... Kb2 {[%clk 0:00:06.9]} 51. Kxd5 {[%clk 0:00:02.8]}
51... Kc2 {[%clk 0:00:07.5]} 52. Nc4 {[%clk 0:00:02.4]} 52... Kd3 {[%clk
0:00:07.6]} 53. Kc5 {[%clk 0:00:02.5]} 53... b3 {[%clk 0:00:07.6]} 54. d5 {[%clk
0:00:02.9]} 54... Ke2 {[%clk 0:00:08.1]} 55. d6 {[%clk 0:00:03.3]} 55... Kxf3
{[%clk 0:00:08.7]} 56. d7 {[%clk 0:00:03.9]} 56... g5 {[%clk 0:00:09.3]} 57.
d8=Q {[%clk 0:00:04.2]} 1-0

[Event "Early-Titled-Tuesday-Blitz-June-18-2024"]
[Site "Chess.com"]
[Date "2024.06.18"]
[Round "4"]
[White "ThetNaung291"]
[Black "Iball95"]
[Result "1-0"]
[WhiteElo "2454"]
[BlackElo "2815"]
[TimeControl "180+1"]
[EndTime "8:42:14 PDT"]
[Termination "ThetNaung291 won by checkmate"]

1. d4 {[%clk 0:03:00.6]} 1... d5 {[%clk 0:02:58.8]} 2. c4 {[%clk 0:03:00.1]}
2... e6 {[%clk 0:02:58.9]} 3. Nf3 {[%clk 0:02:57.6]} 3... Nf6 {[%clk 0:02:58.3]}
4. Nc3 {[%clk 0:02:55.8]} 4... c5 {[%clk 0:02:58.9]} 5. cxd5 {[%clk 0:02:44]}
5... cxd4 {[%clk 0:02:59]} 6. Nxd4 {[%clk 0:02:37]} 6... Nxd5 {[%clk 0:02:58.6]}
7. Bd2 {[%clk 0:02:22.1]} 7... Bc5 {[%clk 0:02:55.6]} 8. Nf3 {[%clk 0:02:15.6]}
8... O-O {[%clk 0:02:42.6]} 9. e3 {[%clk 0:02:14.1]} 9... Nc6 {[%clk 0:02:40]}
10. Be2 {[%clk 0:02:09.9]} 10... e5 {[%clk 0:02:34.4]} 11. O-O {[%clk
0:02:00.8]} 11... Be6 {[%clk 0:02:16.2]} 12. Rc1 {[%clk 0:01:57.7]} 12... Bb6
{[%clk 0:02:15.7]} 13. Na4 {[%clk 0:01:47.2]} 13... e4 {[%clk 0:02:13.9]} 14.
Ne1 {[%clk 0:01:29.3]} 14... Bc7 {[%clk 0:02:10.1]} 15. Nc5 {[%clk 0:01:27.8]}
15... Bc8 {[%clk 0:02:03.3]} 16. g3 {[%clk 0:01:17.6]} 16... Re8 {[%clk
0:02:00]} 17. Ng2 {[%clk 0:01:16.8]} 17... Qe7 {[%clk 0:01:36.4]} 18. Qc2 {[%clk
0:01:14.4]} 18... Bb6 {[%clk 0:01:25.2]} 19. a3 {[%clk 0:01:10.2]} 19... Nf6
{[%clk 0:01:06.8]} 20. Rfd1 {[%clk 0:01:06.2]} 20... h6 {[%clk 0:00:51.4]} 21.
b4 {[%clk 0:01:04.9]} 21... Bg4 {[%clk 0:00:44.5]} 22. Bc3 {[%clk 0:01:00.9]}
22... Bxe2 {[%clk 0:00:40.9]} 23. Bxf6 {[%clk 0:00:56.6]} 23... Qxf6 {[%clk
0:00:41.8]} 24. Qxe2 {[%clk 0:00:56.1]} 24... Ne5 {[%clk 0:00:38.6]} 25. Nd7
{[%clk 0:00:47]} 25... Nf3+ {[%clk 0:00:36.5]} 26. Kh1 {[%clk 0:00:46.1]} 26...
Qf5 {[%clk 0:00:33.5]} 27. Ne1 {[%clk 0:00:38.9]} 27... Rad8 {[%clk 0:00:26.9]}
28. Nxb6 {[%clk 0:00:33.8]} 28... axb6 {[%clk 0:00:27.5]} 29. Kg2 {[%clk
0:00:29.3]} 29... Qg4 {[%clk 0:00:26.5]} 30. Nxf3 {[%clk 0:00:27]} 30... exf3+
{[%clk 0:00:25.4]} 31. Qxf3 {[%clk 0:00:27]} 31... Qg6 {[%clk 0:00:18.5]} 32.
Qxb7 {[%clk 0:00:25.3]} 32... Ra8 {[%clk 0:00:18.9]} 33. Rc3 {[%clk 0:00:23.9]}
33... h5 {[%clk 0:00:17.1]} 34. h4 {[%clk 0:00:23.4]} 34... Rab8 {[%clk
0:00:16.1]} 35. Qc6 {[%clk 0:00:23.2]} 35... Re6 {[%clk 0:00:15.8]} 36. Qf3
{[%clk 0:00:22.4]} 36... Rf6 {[%clk 0:00:15.4]} 37. Qd5 {[%clk 0:00:21.8]} 37...
Re8 {[%clk 0:00:15.8]} 38. Rd2 {[%clk 0:00:21]} 38... Qg4 {[%clk 0:00:15.7]} 39.
Rc4 {[%clk 0:00:19.6]} 39... Qg6 {[%clk 0:00:14.9]} 40. Rf4 {[%clk 0:00:19.2]}
40... Rxf4 {[%clk 0:00:14.5]} 41. exf4 {[%clk 0:00:19.2]} 41... Qg4 {[%clk
0:00:13.5]} 42. Qf3 {[%clk 0:00:18.6]} 42... Qf5 {[%clk 0:00:12.7]} 43. Rd5
{[%clk 0:00:18.3]} 43... Qc2 {[%clk 0:00:10.6]} 44. Rxh5 {[%clk 0:00:17.8]}
44... Qc1 {[%clk 0:00:11.1]} 45. Re5 {[%clk 0:00:17.2]} 45... Rd8 {[%clk
0:00:11.8]} 46. Qe2 {[%clk 0:00:16.4]} 46... Kh7 {[%clk 0:00:09.9]} 47. Qe4+
{[%clk 0:00:15.9]} 47... g6 {[%clk 0:00:10.4]} 48. h5 {[%clk 0:00:15.6]} 48...
Rd6 {[%clk 0:00:08.8]} 49. hxg6+ {[%clk 0:00:15.2]} 49... Rxg6 {[%clk
0:00:09.7]} 50. Rh5+ {[%clk 0:00:15]} 50... Kg7 {[%clk 0:00:10]} 51. Qe5+ {[%clk
0:00:14.9]} 51... f6 {[%clk 0:00:04.3]} 52. Qe7+ {[%clk 0:00:14.4]} 52... Kg8
{[%clk 0:00:04.8]} 53. Qe8+ {[%clk 0:00:14.2]} 53... Kg7 {[%clk 0:00:04.5]} 54.
Qh8+ {[%clk 0:00:14]} 54... Kf7 {[%clk 0:00:05.1]} 55. Rh7+ {[%clk 0:00:14.9]}
55... Ke6 {[%clk 0:00:05.2]} 56. Qe8+ {[%clk 0:00:15.8]} 56... Kf5 {[%clk
0:00:04.6]} 57. Rh5+ {[%clk 0:00:15.4]} 57... Kg4 {[%clk 0:00:02.3]} 58. Qxg6#
{[%clk 0:00:13.9]} 1-0

[Event "Early-Titled-Tuesday-Blitz-June-18-2024"]
[Site "Chess.com"]
[Date "2024.06.18"]
[Round "4"]
[White "Alenzer"]
[Black "AniJak"]
[Result "0-1"]
[WhiteElo "2172"]
[BlackElo "2349"]
[TimeControl "180+1"]
[EndTime "8:42:14 PDT"]
[Termination "AniJak won by resignation"]

1. e4 {[%clk 0:02:59.2]} 1... Nf6 {[%clk 0:02:58.9]} 2. e5 {[%clk 0:02:58.5]}
2... Nd5 {[%clk 0:02:59.2]} 3. d4 {[%clk 0:02:57.8]} 3... d6 {[%clk 0:02:59.5]}
4. Bc4 {[%clk 0:02:57.2]} 4... Nb6 {[%clk 0:02:58.9]} 5. Bb3 {[%clk 0:02:57]}
5... dxe5 {[%clk 0:02:58]} 6. Qh5 {[%clk 0:02:56.5]} 6... e6 {[%clk 0:02:51.5]}
7. dxe5 {[%clk 0:02:56]} 7... Nc6 {[%clk 0:02:47.7]} 8. Nf3 {[%clk 0:02:54.8]}
8... g6 {[%clk 0:02:42.5]} 9. Qg4 {[%clk 0:02:35.9]} 9... h5 {[%clk 0:02:31.5]}
10. Qe4 {[%clk 0:02:34]} 10... a5 {[%clk 0:02:25.4]} 11. a4 {[%clk 0:02:13.3]}
11... Nd7 {[%clk 0:02:21.6]} 12. Nc3 {[%clk 0:02:11.3]} 12... Nc5 {[%clk
0:02:21.1]} 13. Qc4 {[%clk 0:02:02.1]} 13... b6 {[%clk 0:02:15.1]} 14. Bg5
{[%clk 0:01:53.2]} 14... Ba6 {[%clk 0:01:56.4]} 15. Qf4 {[%clk 0:01:29.5]} 15...
Be7 {[%clk 0:01:48.5]} 16. Rd1 {[%clk 0:01:20.8]} 16... Qc8 {[%clk 0:01:48.7]}
17. Bc4 {[%clk 0:01:03.5]} 17... Bxc4 {[%clk 0:01:38.1]} 18. Qxc4 {[%clk
0:01:01.2]} 18... Nb4 {[%clk 0:01:29.9]} 19. Ne4 {[%clk 0:00:45.9]} 19... Qa6
{[%clk 0:01:25.7]} 20. Qxa6 {[%clk 0:00:35.3]} 20... Ncxa6 {[%clk 0:01:18.2]}
21. c3 {[%clk 0:00:29.9]} 21... Nd5 {[%clk 0:01:15.5]} 22. Bxe7 {[%clk
0:00:27.6]} 22... Kxe7 {[%clk 0:01:14]} 23. c4 {[%clk 0:00:23.3]} 23... Ndb4
{[%clk 0:01:13.6]} 24. Nf6 {[%clk 0:00:23.4]} 24... Rhd8 {[%clk 0:01:13.4]} 25.
O-O {[%clk 0:00:23.2]} 25... Nc5 {[%clk 0:01:11.5]} 26. Ng5 {[%clk 0:00:17.5]}
26... Ncd3 {[%clk 0:01:10.7]} 27. b3 {[%clk 0:00:16.6]} 27... Nxe5 {[%clk
0:01:10.2]} 28. Nfe4 {[%clk 0:00:17]} 28... f6 {[%clk 0:01:03.8]} 29. Nh3 {[%clk
0:00:15.5]} 29... g5 {[%clk 0:01:01.8]} 30. f4 {[%clk 0:00:14.4]} 30... gxf4
{[%clk 0:01:00]} 31. Nxf4 {[%clk 0:00:14.4]} 31... h4 {[%clk 0:00:58.2]} 32.
Rxd8 {[%clk 0:00:09.4]} 32... Rxd8 {[%clk 0:00:57.7]} 33. Nh5 {[%clk 0:00:09.9]}
33... f5 {[%clk 0:00:56.4]} 34. Ng5 {[%clk 0:00:07.7]} 34... Rd2 {[%clk
0:00:53.6]} 35. Nf4 {[%clk 0:00:07.3]} 35... Nbd3 {[%clk 0:00:41.9]} 36. Nfxe6
{[%clk 0:00:06]} 36... Ng4 {[%clk 0:00:34.3]} 37. Nxc7 {[%clk 0:00:05.4]} 37...
Ne3 {[%clk 0:00:33.3]} 38. Nd5+ {[%clk 0:00:05.6]} 38... Nxd5 {[%clk 0:00:31.2]}
39. cxd5 {[%clk 0:00:06.5]} 39... f4 {[%clk 0:00:27.6]} 40. Nf3 {[%clk
0:00:06.7]} 40... Rb2 {[%clk 0:00:26.6]} 41. Nxh4 {[%clk 0:00:06.9]} 41... Rxb3
{[%clk 0:00:23]} 42. Nf5+ {[%clk 0:00:07.5]} 42... Kf6 {[%clk 0:00:22.2]} 43.
Nd4 {[%clk 0:00:07.1]} 43... Rb4 {[%clk 0:00:22.6]} 44. Nc6 {[%clk 0:00:06.4]}
44... Rb2 {[%clk 0:00:22.7]} 45. d6 {[%clk 0:00:06.2]} 45... Ke6 {[%clk
0:00:22.5]} 46. Rd1 {[%clk 0:00:06.4]} 46... Nc5 {[%clk 0:00:18]} 47. Nb8 {[%clk
0:00:05.1]} 47... Rb3 {[%clk 0:00:13.6]} 48. d7 {[%clk 0:00:05.2]} 48... Nxd7
{[%clk 0:00:14]} 49. Nxd7 {[%clk 0:00:05.2]} 49... Rb4 {[%clk 0:00:14]} 50. Re1+
{[%clk 0:00:04.3]} 50... Kxd7 {[%clk 0:00:14]} 51. g3 {[%clk 0:00:04.6]} 51...
fxg3 {[%clk 0:00:13.8]} 52. hxg3 {[%clk 0:00:05.2]} 52... Rxa4 {[%clk
0:00:14.7]} 53. Kf2 {[%clk 0:00:05.5]} 53... b5 {[%clk 0:00:14.4]} 54. Kf3
{[%clk 0:00:05.6]} 54... b4 {[%clk 0:00:14.5]} 55. Rd1+ {[%clk 0:00:05.9]} 55...
Ke6 {[%clk 0:00:14.4]} 56. g4 {[%clk 0:00:06.3]} 56... b3 {[%clk 0:00:14.6]} 57.
Rb1 {[%clk 0:00:06.1]} 57... Rb4 {[%clk 0:00:14.8]} 58. Ke3 {[%clk 0:00:05.6]}
58... a4 {[%clk 0:00:14.3]} 59. g5 {[%clk 0:00:05.1]} 59... a3 {[%clk
0:00:13.9]} 60. Kd3 {[%clk 0:00:02.5]} 60... a2 {[%clk 0:00:14.1]} 61. Ra1
{[%clk 0:00:02.5]} 61... b2 {[%clk 0:00:13.1]} 62. Rxa2 {[%clk 0:00:03]} 62...
b1=Q+ {[%clk 0:00:13.4]} 0-1

[Event "Early-Titled-Tuesday-Blitz-June-18-2024"]
[Site "Chess.com"]
[Date "2024.06.18"]
[Round "4"]
[White "dennisodessa"]
[Black "Witik"]
[Result "1-0"]
[WhiteElo "2601"]
[BlackElo "2808"]
[TimeControl "180+1"]
[EndTime "8:42:22 PDT"]
[Termination "dennisodessa won on time"]

1. d4 {[%clk 0:02:15]} 1... Nf6 {[%clk 0:02:59.8]} 2. c4 {[%clk 0:02:14.2]} 2...
e6 {[%clk 0:02:59.9]} 3. Nc3 {[%clk 0:02:11.7]} 3... Bb4 {[%clk 0:03:00.1]} 4.
Qc2 {[%clk 0:02:11]} 4... c5 {[%clk 0:03:00.3]} 5. dxc5 {[%clk 0:02:10.5]} 5...
Qc7 {[%clk 0:03:01]} 6. Bg5 {[%clk 0:02:07]} 6... Bxc5 {[%clk 0:02:59.7]} 7.
Bxf6 {[%clk 0:02:05.9]} 7... gxf6 {[%clk 0:02:59.9]} 8. Nf3 {[%clk 0:02:00.5]}
8... Nc6 {[%clk 0:02:46.9]} 9. e3 {[%clk 0:01:55.4]} 9... f5 {[%clk 0:02:30.5]}
10. Be2 {[%clk 0:01:51.1]} 10... a6 {[%clk 0:02:30.3]} 11. O-O {[%clk 0:01:51]}
11... b6 {[%clk 0:02:27]} 12. e4 {[%clk 0:01:50.1]} 12... fxe4 {[%clk
0:01:57.9]} 13. Nxe4 {[%clk 0:01:51]} 13... Be7 {[%clk 0:01:57]} 14. Qc3 {[%clk
0:01:46.4]} 14... Rg8 {[%clk 0:01:53.7]} 15. Nf6+ {[%clk 0:01:45.7]} 15... Bxf6
{[%clk 0:01:53.8]} 16. Qxf6 {[%clk 0:01:46.6]} 16... Bb7 {[%clk 0:01:54.6]} 17.
Rfd1 {[%clk 0:01:41.5]} 17... Rg6 {[%clk 0:01:43.6]} 18. Qh4 {[%clk 0:01:41.1]}
18... Ne5 {[%clk 0:01:39.9]} 19. Qh5 {[%clk 0:01:21.1]} 19... Bxf3 {[%clk
0:01:20.2]} 20. Bxf3 {[%clk 0:01:21.9]} 20... O-O-O {[%clk 0:01:20.8]} 21. Be2
{[%clk 0:01:16.4]} 21... Rdg8 {[%clk 0:01:19.2]} 22. g3 {[%clk 0:01:16.5]} 22...
f5 {[%clk 0:01:19.9]} 23. c5 {[%clk 0:01:14]} 23... bxc5 {[%clk 0:01:14.5]} 24.
Bxa6+ {[%clk 0:01:14.2]} 24... Kb8 {[%clk 0:01:11.8]} 25. Qe2 {[%clk 0:01:15.1]}
25... Ka7 {[%clk 0:01:05.5]} 26. Bb5 {[%clk 0:01:09.5]} 26... f4 {[%clk
0:00:59.1]} 27. Rac1 {[%clk 0:01:01.6]} 27... d6 {[%clk 0:00:56.2]} 28. b4
{[%clk 0:01:00.8]} 28... Qb7 {[%clk 0:00:56.6]} 29. Rxd6 {[%clk 0:00:38.4]}
29... Nf3+ {[%clk 0:00:37.3]} 30. Kf1 {[%clk 0:00:38.1]} 30... Nd4 {[%clk
0:00:38]} 31. Ra6+ {[%clk 0:00:19.9]} 31... Qxa6 {[%clk 0:00:37.7]} 32. Bxa6
{[%clk 0:00:20.8]} 32... Nxe2 {[%clk 0:00:38.4]} 33. Bxe2 {[%clk 0:00:21.3]}
33... cxb4 {[%clk 0:00:38.9]} 34. Rc4 {[%clk 0:00:21.3]} 34... fxg3 {[%clk
0:00:37.7]} 35. hxg3 {[%clk 0:00:22.2]} 35... Rb8 {[%clk 0:00:33.6]} 36. Bf3
{[%clk 0:00:21.9]} 36... Rf6 {[%clk 0:00:22.7]} 37. Be4 {[%clk 0:00:22.1]} 37...
h6 {[%clk 0:00:22.1]} 38. Rc6 {[%clk 0:00:12]} 38... Rbf8 {[%clk 0:00:18.7]} 39.
f4 {[%clk 0:00:12]} 39... e5 {[%clk 0:00:18.9]} 40. Rc7+ {[%clk 0:00:11.7]}
40... Kb6 {[%clk 0:00:19.5]} 41. Rb7+ {[%clk 0:00:12.1]} 41... Kc5 {[%clk
0:00:20]} 42. f5 {[%clk 0:00:10.1]} 42... Rd6 {[%clk 0:00:11.6]} 43. Ke2 {[%clk
0:00:09.6]} 43... Rfd8 {[%clk 0:00:11.1]} 44. Ke3 {[%clk 0:00:07.9]} 44... Rd1
{[%clk 0:00:10.6]} 45. Rc7+ {[%clk 0:00:06.1]} 45... Kb6 {[%clk 0:00:10.9]} 46.
Rc6+ {[%clk 0:00:07]} 46... Kb5 {[%clk 0:00:11.5]} 47. Rxh6 {[%clk 0:00:07.6]}
47... Re1+ {[%clk 0:00:11.9]} 48. Kf3 {[%clk 0:00:08.1]} 48... Rd2 {[%clk
0:00:11.5]} 49. f6 {[%clk 0:00:07.4]} 49... Rxa2 {[%clk 0:00:10.8]} 50. Bf5
{[%clk 0:00:06.4]} 50... Rf1+ {[%clk 0:00:10.5]} 51. Kg4 {[%clk 0:00:07.3]}
51... Raf2 {[%clk 0:00:07.8]} 52. Rh5 {[%clk 0:00:07.4]} 52... Ra2 {[%clk
0:00:04.7]} 53. f7 {[%clk 0:00:06.8]} 53... Ra8 {[%clk 0:00:05.4]} 54. Be6
{[%clk 0:00:04.9]} 54... Rf8 {[%clk 0:00:05.6]} 55. Rxe5+ {[%clk 0:00:05.4]}
55... Kc6 {[%clk 0:00:06.2]} 56. Rf5 {[%clk 0:00:05.4]} 56... Rxf5 {[%clk
0:00:05.9]} 57. Kxf5 {[%clk 0:00:06.2]} 57... Kd6 {[%clk 0:00:06.3]} 58. Kf6
{[%clk 0:00:07.1]} 58... Ra8 {[%clk 0:00:03.2]} 59. g4 {[%clk 0:00:07.2]} 1-0